{"text_format":"3","workbook":"xlsx","n_sheets":1,"sheets":["Бюджет расходов"],"not_rendered":{"charts":2,"defined_names":3},"read":"whole","date_system":"1900"}

{"sheet":"Бюджет расходов","index":0,"n_rows":47,"n_cols":7,"rows_kept":47,"merged":[[0,1,0,4],[0,5,0,6],[16,1,16,6],[47,1,47,6]]}
[null,"Бюджет расходов",{"$nulls":3},"CONTOSO, 2013 г."]
[]
[]
[null," БЮДЖЕТ НА ПЕРСОНАЛ"]
{"$rows_empty":7}
[null,"СОСТОЯНИЕ","ПЕРСОНАЛ","БЮДЖЕТ","ФАКТИЧЕСКИЕ","РАЗНИЦА ($)","РАЗНИЦА (%)"]
[null,{"$f":"IFERROR(таблЛичныеРасходы[[#This Row],[ФАКТИЧЕСКИЕ]]/таблЛичныеРасходы[[#This Row],[БЮДЖЕТ]],\"\")","v":{"v":1.13,"d":"$1.13"}},"Офис",{"v":500,"d":"500.00р."},{"v":565,"d":"565.00р."},{"$f":"таблЛичныеРасходы[[#This Row],[БЮДЖЕТ]]-таблЛичныеРасходы[[#This Row],[ФАКТИЧЕСКИЕ]]","v":{"v":-65,"d":"-65.00р."}},{"$f":"IFERROR(таблЛичныеРасходы[РАЗНИЦА ($)]/таблЛичныеРасходы[БЮДЖЕТ],\"\")","v":{"v":-0.13,"d":"-13%"}}]
[null,{"$f":"IFERROR(таблЛичныеРасходы[[#This Row],[ФАКТИЧЕСКИЕ]]/таблЛичныеРасходы[[#This Row],[БЮДЖЕТ]],\"\")","v":{"v":1.2,"d":"$1.20"}},"Магазин",{"v":125,"d":"125.00р."},{"v":150,"d":"150.00р."},{"$f":"таблЛичныеРасходы[[#This Row],[БЮДЖЕТ]]-таблЛичныеРасходы[[#This Row],[ФАКТИЧЕСКИЕ]]","v":{"v":-25,"d":"-25.00р."}},{"$f":"IFERROR(таблЛичныеРасходы[РАЗНИЦА ($)]/таблЛичныеРасходы[БЮДЖЕТ],\"\")","v":{"v":-0.2,"d":"-20%"}}]
[null,{"$f":"IFERROR(таблЛичныеРасходы[[#This Row],[ФАКТИЧЕСКИЕ]]/таблЛичныеРасходы[[#This Row],[БЮДЖЕТ]],\"\")","v":{"v":1,"d":"$1.00"}},"Продавцы",{"v":100,"d":"100.00р."},{"v":100,"d":"100.00р."},{"$f":"таблЛичныеРасходы[[#This Row],[БЮДЖЕТ]]-таблЛичныеРасходы[[#This Row],[ФАКТИЧЕСКИЕ]]","v":{"v":0,"d":"0.00р."}},{"$f":"IFERROR(таблЛичныеРасходы[РАЗНИЦА ($)]/таблЛичныеРасходы[БЮДЖЕТ],\"\")","v":{"v":0,"d":"0%"}}]
[null,{"$f":"IFERROR(таблЛичныеРасходы[[#This Row],[ФАКТИЧЕСКИЕ]]/таблЛичныеРасходы[[#This Row],[БЮДЖЕТ]],\"\")","v":{"v":0.9,"d":"$0.90"}},"Другое",{"v":100,"d":"100.00р."},{"v":90,"d":"90.00р."},{"$f":"таблЛичныеРасходы[[#This Row],[БЮДЖЕТ]]-таблЛичныеРасходы[[#This Row],[ФАКТИЧЕСКИЕ]]","v":{"v":10,"d":"10.00р."}},{"$f":"IFERROR(таблЛичныеРасходы[РАЗНИЦА ($)]/таблЛичныеРасходы[БЮДЖЕТ],\"\")","v":{"v":0.1,"d":"10%"}}]
[]
[]
[null," ОПЕРАЦИОННЫЙ БЮДЖЕТ"]
{"$rows_empty":7}
[null,"СОСТОЯНИЕ","ОПЕРАЦИОННЫЕ","БЮДЖЕТ","ФАКТИЧЕСКИЕ","РАЗНИЦА ($)","РАЗНИЦА (%)"]
[null,{"$f":"IFERROR(таблЭксплуатационныеРасходы[[#This Row],[ФАКТИЧЕСКИЕ]]/таблЭксплуатационныеРасходы[[#This Row],[БЮДЖЕТ]],\"\")","v":{"v":0.98,"d":"$0.98"}},"Реклама",{"v":250,"d":"250.00р."},{"v":245,"d":"245.00р."},{"$f":"таблЭксплуатационныеРасходы[[#This Row],[БЮДЖЕТ]]-таблЭксплуатационныеРасходы[[#This Row],[ФАКТИЧЕСКИЕ]]","v":{"v":5,"d":"5.00р."}},{"$f":"IFERROR(таблЭксплуатационныеРасходы[[#This Row],[РАЗНИЦА ($)]]/таблЭксплуатационныеРасходы[[#This Row],[БЮДЖЕТ]],\"\")","v":{"v":0.02,"d":"2%"}}]
[null,{"$f":"IFERROR(таблЭксплуатационныеРасходы[[#This Row],[ФАКТИЧЕСКИЕ]]/таблЭксплуатационныеРасходы[[#This Row],[БЮДЖЕТ]],\"\")","v":{"v":1.2,"d":"$1.20"}},"Долги",{"v":125,"d":"125.00р."},{"v":150,"d":"150.00р."},{"$f":"таблЭксплуатационныеРасходы[[#This Row],[БЮДЖЕТ]]-таблЭксплуатационныеРасходы[[#This Row],[ФАКТИЧЕСКИЕ]]","v":{"v":-25,"d":"-25.00р."}},{"$f":"IFERROR(таблЭксплуатационныеРасходы[[#This Row],[РАЗНИЦА ($)]]/таблЭксплуатационныеРасходы[[#This Row],[БЮДЖЕТ]],\"\")","v":{"v":-0.2,"d":"-20%"}}]
[null,{"$f":"IFERROR(таблЭксплуатационныеРасходы[[#This Row],[ФАКТИЧЕСКИЕ]]/таблЭксплуатационныеРасходы[[#This Row],[БЮДЖЕТ]],\"\")","v":{"v":1,"d":"$1.00"}},"Льготы",{"v":100,"d":"100.00р."},{"v":100,"d":"100.00р."},{"$f":"таблЭксплуатационныеРасходы[[#This Row],[БЮДЖЕТ]]-таблЭксплуатационныеРасходы[[#This Row],[ФАКТИЧЕСКИЕ]]","v":{"v":0,"d":"0.00р."}},{"$f":"IFERROR(таблЭксплуатационныеРасходы[[#This Row],[РАЗНИЦА ($)]]/таблЭксплуатационныеРасходы[[#This Row],[БЮДЖЕТ]],\"\")","v":{"v":0,"d":"0%"}}]
[null,{"$f":"IFERROR(таблЭксплуатационныеРасходы[[#This Row],[ФАКТИЧЕСКИЕ]]/таблЭксплуатационныеРасходы[[#This Row],[БЮДЖЕТ]],\"\")","v":{"v":0.9,"d":"$0.90"}},"Расходные материалы",{"v":100,"d":"100.00р."},{"v":90,"d":"90.00р."},{"$f":"таблЭксплуатационныеРасходы[[#This Row],[БЮДЖЕТ]]-таблЭксплуатационныеРасходы[[#This Row],[ФАКТИЧЕСКИЕ]]","v":{"v":10,"d":"10.00р."}},{"$f":"IFERROR(таблЭксплуатационныеРасходы[[#This Row],[РАЗНИЦА ($)]]/таблЭксплуатационныеРасходы[[#This Row],[БЮДЖЕТ]],\"\")","v":{"v":0.1,"d":"10%"}}]
[null,{"$f":"IFERROR(таблЭксплуатационныеРасходы[[#This Row],[ФАКТИЧЕСКИЕ]]/таблЭксплуатационныеРасходы[[#This Row],[БЮДЖЕТ]],\"\")","v":""},"Почтовые расходы",null,null,{"$f":"таблЭксплуатационныеРасходы[[#This Row],[БЮДЖЕТ]]-таблЭксплуатационныеРасходы[[#This Row],[ФАКТИЧЕСКИЕ]]","v":{"v":0,"d":"0.00р."}},{"$f":"IFERROR(таблЭксплуатационныеРасходы[[#This Row],[РАЗНИЦА ($)]]/таблЭксплуатационныеРасходы[[#This Row],[БЮДЖЕТ]],\"\")","v":""}]
[null,{"$f":"IFERROR(таблЭксплуатационныеРасходы[[#This Row],[ФАКТИЧЕСКИЕ]]/таблЭксплуатационныеРасходы[[#This Row],[БЮДЖЕТ]],\"\")","v":""},"Аренда и ипотека",null,null,{"$f":"таблЭксплуатационныеРасходы[[#This Row],[БЮДЖЕТ]]-таблЭксплуатационныеРасходы[[#This Row],[ФАКТИЧЕСКИЕ]]","v":{"v":0,"d":"0.00р."}},{"$f":"IFERROR(таблЭксплуатационныеРасходы[[#This Row],[РАЗНИЦА ($)]]/таблЭксплуатационныеРасходы[[#This Row],[БЮДЖЕТ]],\"\")","v":""}]
[null,{"$f":"IFERROR(таблЭксплуатационныеРасходы[[#This Row],[ФАКТИЧЕСКИЕ]]/таблЭксплуатационныеРасходы[[#This Row],[БЮДЖЕТ]],\"\")","v":""},"Расходы на продажи",null,null,{"$f":"таблЭксплуатационныеРасходы[[#This Row],[БЮДЖЕТ]]-таблЭксплуатационныеРасходы[[#This Row],[ФАКТИЧЕСКИЕ]]","v":{"v":0,"d":"0.00р."}},{"$f":"IFERROR(таблЭксплуатационныеРасходы[[#This Row],[РАЗНИЦА ($)]]/таблЭксплуатационныеРасходы[[#This Row],[БЮДЖЕТ]],\"\")","v":""}]
[null,{"$f":"IFERROR(таблЭксплуатационныеРасходы[[#This Row],[ФАКТИЧЕСКИЕ]]/таблЭксплуатационныеРасходы[[#This Row],[БЮДЖЕТ]],\"\")","v":""},"Налоги",null,null,{"$f":"таблЭксплуатационныеРасходы[[#This Row],[БЮДЖЕТ]]-таблЭксплуатационныеРасходы[[#This Row],[ФАКТИЧЕСКИЕ]]","v":{"v":0,"d":"0.00р."}},{"$f":"IFERROR(таблЭксплуатационныеРасходы[[#This Row],[РАЗНИЦА ($)]]/таблЭксплуатационныеРасходы[[#This Row],[БЮДЖЕТ]],\"\")","v":""}]
[null,{"$f":"IFERROR(таблЭксплуатационныеРасходы[[#This Row],[ФАКТИЧЕСКИЕ]]/таблЭксплуатационныеРасходы[[#This Row],[БЮДЖЕТ]],\"\")","v":""},"Коммунальные услуги",null,null,{"$f":"таблЭксплуатационныеРасходы[[#This Row],[БЮДЖЕТ]]-таблЭксплуатационныеРасходы[[#This Row],[ФАКТИЧЕСКИЕ]]","v":{"v":0,"d":"0.00р."}},{"$f":"IFERROR(таблЭксплуатационныеРасходы[[#This Row],[РАЗНИЦА ($)]]/таблЭксплуатационныеРасходы[[#This Row],[БЮДЖЕТ]],\"\")","v":""}]
[null,{"$f":"IFERROR(таблЭксплуатационныеРасходы[[#This Row],[ФАКТИЧЕСКИЕ]]/таблЭксплуатационныеРасходы[[#This Row],[БЮДЖЕТ]],\"\")","v":""},"Другое",null,null,{"$f":"таблЭксплуатационныеРасходы[[#This Row],[БЮДЖЕТ]]-таблЭксплуатационныеРасходы[[#This Row],[ФАКТИЧЕСКИЕ]]","v":{"v":0,"d":"0.00р."}},{"$f":"IFERROR(таблЭксплуатационныеРасходы[[#This Row],[РАЗНИЦА ($)]]/таблЭксплуатационныеРасходы[[#This Row],[БЮДЖЕТ]],\"\")","v":""}]
[null,{"$f":"IFERROR(таблЭксплуатационныеРасходы[[#This Row],[ФАКТИЧЕСКИЕ]]/таблЭксплуатационныеРасходы[[#This Row],[БЮДЖЕТ]],\"\")","v":""},"Страховка",null,null,{"$f":"таблЭксплуатационныеРасходы[[#This Row],[БЮДЖЕТ]]-таблЭксплуатационныеРасходы[[#This Row],[ФАКТИЧЕСКИЕ]]","v":{"v":0,"d":"0.00р."}},{"$f":"IFERROR(таблЭксплуатационныеРасходы[[#This Row],[РАЗНИЦА ($)]]/таблЭксплуатационныеРасходы[[#This Row],[БЮДЖЕТ]],\"\")","v":""}]
[null,{"$f":"IFERROR(таблЭксплуатационныеРасходы[[#This Row],[ФАКТИЧЕСКИЕ]]/таблЭксплуатационныеРасходы[[#This Row],[БЮДЖЕТ]],\"\")","v":""},"Проценты",null,null,{"$f":"таблЭксплуатационныеРасходы[[#This Row],[БЮДЖЕТ]]-таблЭксплуатационныеРасходы[[#This Row],[ФАКТИЧЕСКИЕ]]","v":{"v":0,"d":"0.00р."}},{"$f":"IFERROR(таблЭксплуатационныеРасходы[[#This Row],[РАЗНИЦА ($)]]/таблЭксплуатационныеРасходы[[#This Row],[БЮДЖЕТ]],\"\")","v":""}]
[null,{"$f":"IFERROR(таблЭксплуатационныеРасходы[[#This Row],[ФАКТИЧЕСКИЕ]]/таблЭксплуатационныеРасходы[[#This Row],[БЮДЖЕТ]],\"\")","v":""},"Телефон",null,null,{"$f":"таблЭксплуатационныеРасходы[[#This Row],[БЮДЖЕТ]]-таблЭксплуатационныеРасходы[[#This Row],[ФАКТИЧЕСКИЕ]]","v":{"v":0,"d":"0.00р."}},{"$f":"IFERROR(таблЭксплуатационныеРасходы[[#This Row],[РАЗНИЦА ($)]]/таблЭксплуатационныеРасходы[[#This Row],[БЮДЖЕТ]],\"\")","v":""}]
[null,{"$f":"IFERROR(таблЭксплуатационныеРасходы[[#This Row],[ФАКТИЧЕСКИЕ]]/таблЭксплуатационныеРасходы[[#This Row],[БЮДЖЕТ]],\"\")","v":""},"Ремонт и техобслуживание",null,null,{"$f":"таблЭксплуатационныеРасходы[[#This Row],[БЮДЖЕТ]]-таблЭксплуатационныеРасходы[[#This Row],[ФАКТИЧЕСКИЕ]]","v":{"v":0,"d":"0.00р."}},{"$f":"IFERROR(таблЭксплуатационныеРасходы[[#This Row],[РАЗНИЦА ($)]]/таблЭксплуатационныеРасходы[[#This Row],[БЮДЖЕТ]],\"\")","v":""}]
[null,{"$f":"IFERROR(таблЭксплуатационныеРасходы[[#This Row],[ФАКТИЧЕСКИЕ]]/таблЭксплуатационныеРасходы[[#This Row],[БЮДЖЕТ]],\"\")","v":""},"Юридические услуги",null,null,{"$f":"таблЭксплуатационныеРасходы[[#This Row],[БЮДЖЕТ]]-таблЭксплуатационныеРасходы[[#This Row],[ФАКТИЧЕСКИЕ]]","v":{"v":0,"d":"0.00р."}},{"$f":"IFERROR(таблЭксплуатационныеРасходы[[#This Row],[РАЗНИЦА ($)]]/таблЭксплуатационныеРасходы[[#This Row],[БЮДЖЕТ]],\"\")","v":""}]
[null,{"$f":"IFERROR(таблЭксплуатационныеРасходы[[#This Row],[ФАКТИЧЕСКИЕ]]/таблЭксплуатационныеРасходы[[#This Row],[БЮДЖЕТ]],\"\")","v":""},"Амортизация",null,null,{"$f":"таблЭксплуатационныеРасходы[[#This Row],[БЮДЖЕТ]]-таблЭксплуатационныеРасходы[[#This Row],[ФАКТИЧЕСКИЕ]]","v":{"v":0,"d":"0.00р."}},{"$f":"IFERROR(таблЭксплуатационныеРасходы[[#This Row],[РАЗНИЦА ($)]]/таблЭксплуатационныеРасходы[[#This Row],[БЮДЖЕТ]],\"\")","v":""}]
[null,{"$f":"IFERROR(таблЭксплуатационныеРасходы[[#This Row],[ФАКТИЧЕСКИЕ]]/таблЭксплуатационныеРасходы[[#This Row],[БЮДЖЕТ]],\"\")","v":""},"Доставка товаров",null,null,{"$f":"таблЭксплуатационныеРасходы[[#This Row],[БЮДЖЕТ]]-таблЭксплуатационныеРасходы[[#This Row],[ФАКТИЧЕСКИЕ]]","v":{"v":0,"d":"0.00р."}},{"$f":"IFERROR(таблЭксплуатационныеРасходы[[#This Row],[РАЗНИЦА ($)]]/таблЭксплуатационныеРасходы[[#This Row],[БЮДЖЕТ]],\"\")","v":""}]
[null,{"$f":"IFERROR(таблЭксплуатационныеРасходы[[#This Row],[ФАКТИЧЕСКИЕ]]/таблЭксплуатационныеРасходы[[#This Row],[БЮДЖЕТ]],\"\")","v":""},"Хранение",null,null,{"$f":"таблЭксплуатационныеРасходы[[#This Row],[БЮДЖЕТ]]-таблЭксплуатационныеРасходы[[#This Row],[ФАКТИЧЕСКИЕ]]","v":{"v":0,"d":"0.00р."}},{"$f":"IFERROR(таблЭксплуатационныеРасходы[[#This Row],[РАЗНИЦА ($)]]/таблЭксплуатационныеРасходы[[#This Row],[БЮДЖЕТ]],\"\")","v":""}]
[null,{"$f":"IFERROR(таблЭксплуатационныеРасходы[[#This Row],[ФАКТИЧЕСКИЕ]]/таблЭксплуатационныеРасходы[[#This Row],[БЮДЖЕТ]],\"\")","v":""},"Другое",null,null,{"$f":"таблЭксплуатационныеРасходы[[#This Row],[БЮДЖЕТ]]-таблЭксплуатационныеРасходы[[#This Row],[ФАКТИЧЕСКИЕ]]","v":{"v":0,"d":"0.00р."}},{"$f":"IFERROR(таблЭксплуатационныеРасходы[[#This Row],[РАЗНИЦА ($)]]/таблЭксплуатационныеРасходы[[#This Row],[БЮДЖЕТ]],\"\")","v":""}]
[null,null,"Общие расходы",{"$f":"SUBTOTAL(109,таблЭксплуатационныеРасходы[БЮДЖЕТ],таблЛичныеРасходы[БЮДЖЕТ])","v":{"v":1400,"d":"1,400.00р."}},{"$f":"SUBTOTAL(109,таблЭксплуатационныеРасходы[ФАКТИЧЕСКИЕ],таблЛичныеРасходы[ФАКТИЧЕСКИЕ])","v":{"v":1490,"d":"1,490.00р."}},{"$f":"SUBTOTAL(109,таблЭксплуатационныеРасходы[РАЗНИЦА ($)],таблЛичныеРасходы[РАЗНИЦА ($)])","v":{"v":-90,"d":"-90.00р."}},{"$f":"IFERROR(SUM(таблЭксплуатационныеРасходы[[#Totals],[РАЗНИЦА ($)]]/таблЭксплуатационныеРасходы[[#Totals],[БЮДЖЕТ]]),\"\")","v":{"v":-0.06428571428571428,"d":"-6%"}}]